[Event "Early-Titled-Tuesday-Blitz-April-16-2024"]
[Site "Chess.com"]
[Date "2024.04.16"]
[Round "4"]
[White "SharapovEvgeny"]
[Black "Bulatova_Kamaliya"]
[Result "1-0"]
[WhiteElo "2661"]
[BlackElo "2469"]
[TimeControl "180+1"]
[EndTime "8:37:15 PDT"]
[Termination "SharapovEvgeny won by resignation"]

1. e4 {[%clk 0:03:00.1]} 1... c5 {[%clk 0:02:59.1]} 2. Nf3 {[%clk 0:03:00]} 2...
d6 {[%clk 0:02:59]} 3. d4 {[%clk 0:03:00.2]} 3... cxd4 {[%clk 0:02:58.9]} 4.
Nxd4 {[%clk 0:03:00.6]} 4... Nf6 {[%clk 0:02:58.7]} 5. f3 {[%clk 0:03:01.2]}
5... e5 {[%clk 0:02:57.9]} 6. Nb3 {[%clk 0:03:01]} 6... Be6 {[%clk 0:02:57.4]}
7. c4 {[%clk 0:03:01]} 7... Be7 {[%clk 0:02:52.1]} 8. Be3 {[%clk 0:03:00.5]}
8... Nbd7 {[%clk 0:02:50.6]} 9. Nc3 {[%clk 0:03:00.2]} 9... O-O {[%clk
0:02:46.2]} 10. Be2 {[%clk 0:03:00.1]} 10... Nb6 {[%clk 0:02:34.7]} 11. Nd5
{[%clk 0:02:59.4]} 11... Bxd5 {[%clk 0:02:27.5]} 12. cxd5 {[%clk 0:02:59.1]}
12... Na4 {[%clk 0:02:25]} 13. Qd2 {[%clk 0:02:55.8]} 13... a6 {[%clk
0:02:05.2]} 14. O-O {[%clk 0:02:55.1]} 14... b5 {[%clk 0:02:01.4]} 15. Na5
{[%clk 0:02:53.1]} 15... Qd7 {[%clk 0:01:47.5]} 16. Nc6 {[%clk 0:02:52.2]} 16...
Bd8 {[%clk 0:01:45.2]} 17. b3 {[%clk 0:02:51.7]} 17... Nb6 {[%clk 0:01:33.6]}
18. Nxd8 {[%clk 0:02:51.1]} 18... Qxd8 {[%clk 0:01:32.7]} 19. Rfc1 {[%clk
0:02:49.3]} 19... Nbd7 {[%clk 0:01:20.4]} 20. Rc6 {[%clk 0:02:45.8]} 20... Ne8
{[%clk 0:01:19.3]} 21. a4 {[%clk 0:02:42.1]} 21... f5 {[%clk 0:01:08.4]} 22.
exf5 {[%clk 0:02:41.8]} 22... Rxf5 {[%clk 0:01:03.7]} 23. axb5 {[%clk
0:02:38.6]} 23... axb5 {[%clk 0:01:01.7]} 24. Rxa8 {[%clk 0:02:35.2]} 24... Qxa8
{[%clk 0:01:02.6]} 25. Bxb5 {[%clk 0:02:31.3]} 25... Qa1+ {[%clk 0:00:52.7]} 26.
Rc1 {[%clk 0:02:30]} 26... Qa8 {[%clk 0:00:39]} 27. Bxd7 {[%clk 0:02:28.3]}
27... Rf8 {[%clk 0:00:39.1]} 28. Bxe8 {[%clk 0:02:28.1]} 28... Rxe8 {[%clk
0:00:39.2]} 29. b4 {[%clk 0:02:28.1]} 29... e4 {[%clk 0:00:38.1]} 30. f4 {[%clk
0:02:27.9]} 30... Rf8 {[%clk 0:00:35]} 31. b5 {[%clk 0:02:27.6]} 31... Rf5
{[%clk 0:00:33.6]} 32. b6 {[%clk 0:02:26]} 32... Rxd5 {[%clk 0:00:30.7]} 33.
Rc8+ {[%clk 0:02:21.3]} 33... Qxc8 {[%clk 0:00:27.7]} 34. Qxd5+ {[%clk
0:02:21.5]} 34... Kh8 {[%clk 0:00:26.6]} 35. b7 {[%clk 0:02:19.3]} 35... Qb8
{[%clk 0:00:25.8]} 36. Qc6 {[%clk 0:02:18.8]} 1-0

[Event "Early-Titled-Tuesday-Blitz-April-16-2024"]
[Site "Chess.com"]
[Date "2024.04.16"]
[Round "4"]
[White "MrVenky"]
[Black "LeninGuerra"]
[Result "1-0"]
[WhiteElo "2528"]
[BlackElo "2770"]
[TimeControl "180+1"]
[EndTime "8:37:19 PDT"]
[Termination "MrVenky won by resignation"]

1. e4 {[%clk 0:03:00.9]} 1... c5 {[%clk 0:03:00.1]} 2. Nc3 {[%clk 0:03:00]} 2...
e6 {[%clk 0:03:00.5]} 3. Nge2 {[%clk 0:02:58.8]} 3... Nf6 {[%clk 0:03:00.4]} 4.
d3 {[%clk 0:02:57.4]} 4... d5 {[%clk 0:03:00.6]} 5. g3 {[%clk 0:02:57.3]} 5...
Nc6 {[%clk 0:03:00.4]} 6. Bg2 {[%clk 0:02:57.2]} 6... d4 {[%clk 0:03:00.9]} 7.
Nb1 {[%clk 0:02:56.7]} 7... e5 {[%clk 0:03:01.2]} 8. O-O {[%clk 0:02:55.9]} 8...
h5 {[%clk 0:03:00.5]} 9. h3 {[%clk 0:02:52.7]} 9... Be6 {[%clk 0:02:32.7]} 10.
f4 {[%clk 0:02:50.7]} 10... exf4 {[%clk 0:02:32.7]} 11. Nxf4 {[%clk 0:02:49.9]}
11... Bd6 {[%clk 0:02:31.2]} 12. Nd2 {[%clk 0:02:44.4]} 12... g5 {[%clk
0:02:29.9]} 13. Nxe6 {[%clk 0:02:43.3]} 13... fxe6 {[%clk 0:02:30.8]} 14. Nc4
{[%clk 0:02:40.5]} 14... Bxg3 {[%clk 0:01:41.5]} 15. Bxg5 {[%clk 0:02:34.7]}
15... Rf8 {[%clk 0:01:41.5]} 16. Bxf6 {[%clk 0:02:12.2]} 16... Rxf6 {[%clk
0:01:42.4]} 17. Qxh5+ {[%clk 0:02:11.9]} 17... Kd7 {[%clk 0:01:42.6]} 18. Rxf6
{[%clk 0:02:01.4]} 18... Qxf6 {[%clk 0:01:42.2]} 19. Rf1 {[%clk 0:02:00.1]}
19... Rh8 {[%clk 0:01:26.4]} 20. Qxc5 {[%clk 0:01:39.6]} 20... Qg7 {[%clk
0:01:16.6]} 21. e5 {[%clk 0:01:39.2]} 21... Bxe5 {[%clk 0:00:43.9]} 22. Nxe5+
{[%clk 0:01:38.6]} 22... Nxe5 {[%clk 0:00:44.2]} 23. Qxd4+ {[%clk 0:01:38.2]}
23... Kc7 {[%clk 0:00:44.6]} 24. Rf7+ {[%clk 0:01:34.6]} 24... Qxf7 {[%clk
0:00:42.6]} 25. Qxe5+ {[%clk 0:01:34.8]} 1-0

[Event "Early-Titled-Tuesday-Blitz-April-16-2024"]
[Site "Chess.com"]
[Date "2024.04.16"]
[Round "4"]
[White "Hongjin"]
[Black "atalz0"]
[Result "0-1"]
[WhiteElo "2641"]
[BlackElo "2449"]
[TimeControl "180+1"]
[EndTime "8:37:38 PDT"]
[Termination "atalz0 won on time"]

1. e4 {[%clk 0:03:00.3]} 1... d5 {[%clk 0:02:59.6]} 2. exd5 {[%clk 0:03:00]}
2... Nf6 {[%clk 0:03:00.2]} 3. d4 {[%clk 0:02:58.5]} 3... Nxd5 {[%clk
0:03:00.3]} 4. c4 {[%clk 0:02:57.7]} 4... Nb6 {[%clk 0:03:00.5]} 5. Nf3 {[%clk
0:02:58.1]} 5... Bg4 {[%clk 0:03:00.4]} 6. c5 {[%clk 0:02:57.8]} 6... N6d7
{[%clk 0:03:00.5]} 7. Bc4 {[%clk 0:02:56.1]} 7... e6 {[%clk 0:03:00.8]} 8. h3
{[%clk 0:02:55.6]} 8... Bxf3 {[%clk 0:03:00.5]} 9. Qxf3 {[%clk 0:02:56.5]} 9...
Nc6 {[%clk 0:03:01]} 10. Be3 {[%clk 0:02:55.5]} 10... Qf6 {[%clk 0:03:01.6]} 11.
Qd1 {[%clk 0:02:52.5]} 11... O-O-O {[%clk 0:02:46.1]} 12. Qa4 {[%clk 0:00:51.4]}
12... Bxc5 {[%clk 0:02:33.8]} 13. dxc5 {[%clk 0:00:28.3]} 13... Qxb2 {[%clk
0:02:32.8]} 14. O-O {[%clk 0:00:22.4]} 14... Qxa1 {[%clk 0:02:30.2]} 15. Ba6
{[%clk 0:00:17.7]} 15... Ndb8 {[%clk 0:02:23.5]} 16. Be2 {[%clk 0:00:06]} 16...
Qb2 {[%clk 0:02:15.8]} 17. Bf3 {[%clk 0:00:04.7]} 17... a6 {[%clk 0:02:04.6]}
18. Na3 {[%clk 0:00:04.5]} 18... Qb4 {[%clk 0:01:59.7]} 19. Qxb4 {[%clk
0:00:03.5]} 19... Nxb4 {[%clk 0:02:00.6]} 20. Rb1 {[%clk 0:00:03.7]} 20... Nd5
{[%clk 0:01:57.8]} 21. Bc1 {[%clk 0:00:02.6]} 21... Nc3 {[%clk 0:01:49.5]} 0-1

[Event "Early-Titled-Tuesday-Blitz-April-16-2024"]
[Site "Chess.com"]
[Date "2024.04.16"]
[Round "4"]
[White "RebelJohnny"]
[Black "MaxLeto"]
[Result "1-0"]
[WhiteElo "2610"]
[BlackElo "2411"]
[TimeControl "180+1"]
[EndTime "8:37:43 PDT"]
[Termination "RebelJohnny won by resignation"]

1. e4 {[%clk 0:03:00.9]} 1... c5 {[%clk 0:02:59.6]} 2. Nf3 {[%clk 0:03:00.3]}
2... d6 {[%clk 0:03:00.5]} 3. d4 {[%clk 0:03:00.4]} 3... cxd4 {[%clk 0:03:01.4]}
4. Nxd4 {[%clk 0:03:01.3]} 4... Nf6 {[%clk 0:03:02.3]} 5. Nc3 {[%clk 0:03:01.4]}
5... a6 {[%clk 0:03:03.2]} 6. Bg5 {[%clk 0:03:01.7]} 6... Nbd7 {[%clk
0:03:03.5]} 7. Qe2 {[%clk 0:03:01.3]} 7... b5 {[%clk 0:03:02.2]} 8. f4 {[%clk
0:02:29.2]} 8... h6 {[%clk 0:02:21.3]} 9. Bh4 {[%clk 0:02:14.5]} 9... b4 {[%clk
0:02:06.8]} 10. Nd5 {[%clk 0:02:11.8]} 10... e6 {[%clk 0:02:05.7]} 11. Nc6
{[%clk 0:02:09.1]} 11... exd5 {[%clk 0:01:21.3]} 12. Nxd8 {[%clk 0:02:01.4]}
12... Kxd8 {[%clk 0:01:22.2]} 13. e5 {[%clk 0:02:00.4]} 13... dxe5 {[%clk
0:01:22.9]} 14. fxe5 {[%clk 0:02:00.6]} 14... g5 {[%clk 0:01:23.4]} 15. exf6
{[%clk 0:01:55.7]} 15... gxh4 {[%clk 0:01:23.7]} 16. O-O-O {[%clk 0:01:54.5]}
16... Bb7 {[%clk 0:01:24.3]} 17. Qf2 {[%clk 0:01:49.4]} 17... Bc5 {[%clk
0:01:19.9]} 18. Qxh4 {[%clk 0:01:47.8]} 18... Kc7 {[%clk 0:01:20.4]} 19. Be2
{[%clk 0:01:39.7]} 19... Kb6 {[%clk 0:01:08.6]} 20. Bf3 {[%clk 0:01:36]} 20...
Be3+ {[%clk 0:01:00.4]} 21. Kb1 {[%clk 0:01:35.1]} 21... d4 {[%clk 0:00:47.2]}
22. Rxd4 {[%clk 0:01:31.5]} 22... Bxf3 {[%clk 0:00:41.7]} 23. Rxb4+ {[%clk
0:01:30.5]} 23... Kc7 {[%clk 0:00:39.5]} 24. gxf3 {[%clk 0:01:29.7]} 24... Bc5
{[%clk 0:00:35.1]} 25. Rc4 {[%clk 0:01:26.9]} 25... Rae8 {[%clk 0:00:33]} 26. b4
{[%clk 0:01:24.1]} 1-0

[Event "Early-Titled-Tuesday-Blitz-April-16-2024"]
[Site "Chess.com"]
[Date "2024.04.16"]
[Round "4"]
[White "BashiqChess"]
[Black "ProtectiveCarrot"]
[Result "0-1"]
[WhiteElo "2473"]
[BlackElo "2299"]
[TimeControl "180+1"]
[EndTime "8:37:45 PDT"]
[Termination "ProtectiveCarrot won by resignation"]

1. Nf3 {[%clk 0:03:00.9]} 1... d5 {[%clk 0:02:59.4]} 2. b3 {[%clk 0:03:01.1]}
2... Nf6 {[%clk 0:02:58.9]} 3. Bb2 {[%clk 0:03:00]} 3... e6 {[%clk 0:02:59.8]}
4. e3 {[%clk 0:02:55.8]} 4... Bd6 {[%clk 0:02:59.8]} 5. d4 {[%clk 0:02:56.2]}
5... O-O {[%clk 0:02:58.6]} 6. Bd3 {[%clk 0:02:56.8]} 6... b6 {[%clk 0:02:59.1]}
7. O-O {[%clk 0:02:57.1]} 7... Bb7 {[%clk 0:02:59.7]} 8. Ne5 {[%clk 0:02:57.5]}
8... Nbd7 {[%clk 0:02:52]} 9. f4 {[%clk 0:02:56.7]} 9... Ne4 {[%clk 0:02:49.2]}
10. Bxe4 {[%clk 0:02:43.9]} 10... dxe4 {[%clk 0:02:49.1]} 11. c4 {[%clk
0:02:43.3]} 11... f6 {[%clk 0:02:35.1]} 12. Nxd7 {[%clk 0:02:39.6]} 12... Qxd7
{[%clk 0:02:36]} 13. Nc3 {[%clk 0:02:39.5]} 13... Qe7 {[%clk 0:02:29.2]} 14. Qc2
{[%clk 0:02:08.7]} 14... e5 {[%clk 0:02:21.4]} 15. fxe5 {[%clk 0:01:54.9]} 15...
fxe5 {[%clk 0:02:21.2]} 16. Nxe4 {[%clk 0:01:51.1]} 16... exd4 {[%clk
0:02:19.6]} 17. Nxd6 {[%clk 0:01:43.8]} 17... Qxe3+ {[%clk 0:02:19.5]} 18. Kh1
{[%clk 0:01:35]} 18... cxd6 {[%clk 0:02:17]} 19. Rae1 {[%clk 0:01:23.4]} 19...
Rae8 {[%clk 0:01:58.4]} 20. Rd1 {[%clk 0:00:19.5]} 20... Rxf1+ {[%clk
0:01:42.6]} 21. Rxf1 {[%clk 0:00:18.3]} 21... Qe2 {[%clk 0:01:42.5]} 22. Qxe2
{[%clk 0:00:14.4]} 22... Rxe2 {[%clk 0:01:42]} 23. Rb1 {[%clk 0:00:07.1]} 23...
Rxg2 {[%clk 0:01:39.2]} 0-1

[Event "Early-Titled-Tuesday-Blitz-April-16-2024"]
[Site "Chess.com"]
[Date "2024.04.16"]
[Round "4"]
[White "Firouzja2003"]
[Black "GatoRojo150"]
[Result "1-0"]
[WhiteElo "3046"]
[BlackElo "2610"]
[TimeControl "180+1"]
[EndTime "8:37:49 PDT"]
[Termination "Firouzja2003 won by resignation"]

1. Nf3 {[%clk 0:02:57.2]} 1... d5 {[%clk 0:02:59.2]} 2. g3 {[%clk 0:02:54.2]}
2... Nc6 {[%clk 0:02:29.4]} 3. d4 {[%clk 0:02:53]} 3... Bg4 {[%clk 0:02:28.4]}
4. Bg2 {[%clk 0:02:53]} 4... Qd7 {[%clk 0:02:26.6]} 5. h3 {[%clk 0:02:45.1]}
5... Bxf3 {[%clk 0:02:24.1]} 6. Bxf3 {[%clk 0:02:46]} 6... Nf6 {[%clk
0:02:22.1]} 7. Bg2 {[%clk 0:02:33.5]} 7... e5 {[%clk 0:02:16.4]} 8. dxe5 {[%clk
0:02:32.9]} 8... Nxe5 {[%clk 0:02:17.3]} 9. O-O {[%clk 0:02:32.5]} 9... Bc5
{[%clk 0:02:10]} 10. Nd2 {[%clk 0:02:31.4]} 10... c6 {[%clk 0:02:07.5]} 11. c3
{[%clk 0:02:29.9]} 11... O-O-O {[%clk 0:02:04.9]} 12. Nb3 {[%clk 0:02:28.3]}
12... Bb6 {[%clk 0:02:03.2]} 13. a4 {[%clk 0:02:27.8]} 13... a6 {[%clk
0:01:57.2]} 14. a5 {[%clk 0:02:28.1]} 14... Ba7 {[%clk 0:01:56.7]} 15. Nd4
{[%clk 0:02:27.7]} 15... Rhe8 {[%clk 0:01:42.3]} 16. Bg5 {[%clk 0:02:24.9]}
16... h6 {[%clk 0:01:03.6]} 17. Bxf6 {[%clk 0:02:24.9]} 17... gxf6 {[%clk
0:01:04.5]} 18. e3 {[%clk 0:02:25.6]} 18... Nc4 {[%clk 0:00:55.4]} 19. Qh5
{[%clk 0:02:16.2]} 19... Bxd4 {[%clk 0:00:34.6]} 20. cxd4 {[%clk 0:02:10.3]}
20... Rh8 {[%clk 0:00:26.4]} 21. Bf3 {[%clk 0:02:06.7]} 21... Kb8 {[%clk
0:00:25.7]} 22. Bg4 {[%clk 0:02:06.7]} 22... Qd6 {[%clk 0:00:23.2]} 23. Qxf7
{[%clk 0:02:03.8]} 23... Nxe3 {[%clk 0:00:20.7]} 24. fxe3 {[%clk 0:01:59.1]}
24... Qxg3+ {[%clk 0:00:19.1]} 25. Kh1 {[%clk 0:01:59.7]} 25... Rdg8 {[%clk
0:00:15.3]} 26. Rf3 {[%clk 0:01:56.9]} 26... Qh4 {[%clk 0:00:14.8]} 27. Qxf6
{[%clk 0:01:54.5]} 27... Rxg4 {[%clk 0:00:14.6]} 28. Qxh8+ {[%clk 0:01:54.9]}
28... Ka7 {[%clk 0:00:14.2]} 29. Qf8 {[%clk 0:01:45.6]} 1-0

[Event "Early-Titled-Tuesday-Blitz-April-16-2024"]
[Site "Chess.com"]
[Date "2024.04.16"]
[Round "4"]
[White "MokshAD1603"]
[Black "martinmena"]
[Result "1-0"]
[WhiteElo "2616"]
[BlackElo "2166"]
[TimeControl "180+1"]
[EndTime "8:37:54 PDT"]
[Termination "MokshAD1603 won by resignation"]

1. e4 {[%clk 0:02:53]} 1... c6 {[%clk 0:02:57]} 2. Nf3 {[%clk 0:02:38.5]} 2...
d5 {[%clk 0:02:52.5]} 3. Nc3 {[%clk 0:02:38]} 3... Bg4 {[%clk 0:02:52.7]} 4. h3
{[%clk 0:02:37.7]} 4... Bxf3 {[%clk 0:02:52.7]} 5. Qxf3 {[%clk 0:02:38.6]} 5...
e6 {[%clk 0:02:38.5]} 6. Be2 {[%clk 0:02:37.7]} 6... Nf6 {[%clk 0:02:33.9]} 7.
O-O {[%clk 0:02:37.1]} 7... dxe4 {[%clk 0:02:30.5]} 8. Nxe4 {[%clk 0:02:37]}
8... Nxe4 {[%clk 0:02:31]} 9. Qxe4 {[%clk 0:02:37]} 9... Qd5 {[%clk 0:02:31.6]}
10. Qg4 {[%clk 0:02:26.4]} 10... Nd7 {[%clk 0:02:15.5]} 11. c4 {[%clk
0:02:22.8]} 11... Qa5 {[%clk 0:02:13.1]} 12. d4 {[%clk 0:02:22.4]} 12... Nf6
{[%clk 0:02:05.2]} 13. Qg3 {[%clk 0:02:22.7]} 13... O-O-O {[%clk 0:02:03.1]} 14.
Rd1 {[%clk 0:02:20.9]} 14... Ne4 {[%clk 0:01:13.2]} 15. Qe3 {[%clk 0:01:54.1]}
15... Nxf2 {[%clk 0:00:15.5]} 16. Qxf2 {[%clk 0:01:52.4]} 16... Rxd4 {[%clk
0:00:15.2]} 17. Rxd4 {[%clk 0:01:51.7]} 17... Bc5 {[%clk 0:00:15.2]} 18. Be3
{[%clk 0:01:51.8]} 18... Bxd4 {[%clk 0:00:02.6]} 19. Bxd4 {[%clk 0:01:51.6]}
19... e5 {[%clk 0:00:03]} 20. Bc3 {[%clk 0:01:51.4]} 20... Qb6 {[%clk
0:00:02.2]} 21. Qxb6 {[%clk 0:01:51.2]} 21... axb6 {[%clk 0:00:03.1]} 22. Bxe5
{[%clk 0:01:51.1]} 22... f6 {[%clk 0:00:03.7]} 23. Bc3 {[%clk 0:01:50.7]} 23...
Re8 {[%clk 0:00:02.9]} 24. Bf3 {[%clk 0:01:49.9]} 24... Re3 {[%clk 0:00:01.3]}
25. Rd1 {[%clk 0:01:49.7]} 25... Rd3 {[%clk 0:00:01.9]} 26. Rxd3 {[%clk
0:01:49.6]} 1-0

[Event "Early-Titled-Tuesday-Blitz-April-16-2024"]
[Site "Chess.com"]
[Date "2024.04.16"]
[Round "4"]
[White "Fernando_Offermann"]
[Black "manitodeplomo"]
[Result "1/2-1/2"]
[WhiteElo "2446"]
[BlackElo "2639"]
[TimeControl "180+1"]
[EndTime "8:38:03 PDT"]
[Termination "Game drawn by repetition"]

1. Nf3 {[%clk 0:02:59.2]} 1... g6 {[%clk 0:02:55.8]} 2. g3 {[%clk 0:02:58.9]}
2... Bg7 {[%clk 0:02:56.2]} 3. Bg2 {[%clk 0:02:59.3]} 3... e5 {[%clk 0:02:56.7]}
4. O-O {[%clk 0:02:59.1]} 4... Ne7 {[%clk 0:02:56]} 5. c4 {[%clk 0:02:59.5]}
5... O-O {[%clk 0:02:55.8]} 6. Nc3 {[%clk 0:02:59.8]} 6... c6 {[%clk 0:02:47.7]}
7. d4 {[%clk 0:02:59.2]} 7... d6 {[%clk 0:02:47.7]} 8. e4 {[%clk 0:02:56.4]}
8... Bg4 {[%clk 0:02:45.7]} 9. Be3 {[%clk 0:02:56.5]} 9... Nd7 {[%clk
0:02:41.9]} 10. h3 {[%clk 0:02:56.3]} 10... Bxf3 {[%clk 0:02:41.2]} 11. Bxf3
{[%clk 0:02:56.8]} 11... c5 {[%clk 0:02:29.9]} 12. dxc5 {[%clk 0:02:52.9]} 12...
Nxc5 {[%clk 0:02:29.8]} 13. Qc2 {[%clk 0:02:52.5]} 13... Nc6 {[%clk 0:02:27.3]}
14. Bg2 {[%clk 0:02:43.3]} 14... Nd4 {[%clk 0:02:21.2]} 15. Qd1 {[%clk
0:02:43.3]} 15... Qb6 {[%clk 0:02:07.2]} 16. b3 {[%clk 0:02:41.3]} 16... Nce6
{[%clk 0:02:01.2]} 17. Nd5 {[%clk 0:02:39]} 17... Qd8 {[%clk 0:01:58.8]} 18. Rc1
{[%clk 0:02:38.4]} 18... Nc7 {[%clk 0:01:54.8]} 19. Nc3 {[%clk 0:02:36.8]} 19...
Nce6 {[%clk 0:01:52.9]} 20. f4 {[%clk 0:02:36.6]} 20... f6 {[%clk 0:01:50]} 21.
f5 {[%clk 0:02:34.9]} 21... Nc5 {[%clk 0:01:45.5]} 22. g4 {[%clk 0:02:34.2]}
22... Nc6 {[%clk 0:01:38.8]} 23. Nd5 {[%clk 0:02:29.8]} 23... a5 {[%clk
0:01:35.7]} 24. a3 {[%clk 0:02:29.6]} 24... a4 {[%clk 0:01:33]} 25. b4 {[%clk
0:02:29.8]} 25... Nb3 {[%clk 0:01:33.5]} 26. Rb1 {[%clk 0:02:25.7]} 26... Ncd4
{[%clk 0:01:33.6]} 27. Qd3 {[%clk 0:02:21.1]} 27... Rc8 {[%clk 0:01:33.5]} 28.
Kh2 {[%clk 0:02:12.7]} 28... Kh8 {[%clk 0:01:32.2]} 29. Nc3 {[%clk 0:02:05.3]}
29... Ra8 {[%clk 0:01:26.6]} 30. Nb5 {[%clk 0:02:00.4]} 30... Nxb5 {[%clk
0:01:22.6]} 31. cxb5 {[%clk 0:02:00.5]} 31... Rc8 {[%clk 0:01:18.8]} 32. Rfd1
{[%clk 0:01:58.4]} 32... Qe8 {[%clk 0:01:06.7]} 33. Bf1 {[%clk 0:01:56.4]} 33...
Rf7 {[%clk 0:00:59.2]} 34. Qxd6 {[%clk 0:01:53.5]} 34... Rc2+ {[%clk 0:00:58.4]}
35. Kg3 {[%clk 0:01:51.4]} 35... Nd4 {[%clk 0:00:38.5]} 36. Bxd4 {[%clk
0:01:43.5]} 36... Rd7 {[%clk 0:00:38.1]} 37. Qe6 {[%clk 0:01:40.1]} 37... Re7
{[%clk 0:00:37.7]} 38. Qd5 {[%clk 0:01:31.3]} 38... Rd7 {[%clk 0:00:35.1]} 39.
Qe6 {[%clk 0:01:31]} 39... Re7 {[%clk 0:00:34.9]} 40. Qd5 {[%clk 0:01:30.4]}
40... Rd7 {[%clk 0:00:34.9]} 41. Qe6 {[%clk 0:01:30.1]} 1/2-1/2

[Event "Early-Titled-Tuesday-Blitz-April-16-2024"]
[Site "Chess.com"]
[Date "2024.04.16"]
[Round "4"]
[White "GlavkonVVS"]
[Black "LuisFSiles"]
[Result "1-0"]
[WhiteElo "2587"]
[BlackElo "2370"]
[TimeControl "180+1"]
[EndTime "8:38:11 PDT"]
[Termination "GlavkonVVS won by resignation"]

1. c4 {[%clk 0:02:53.7]} 1... Nf6 {[%clk 0:02:59.5]} 2. Nc3 {[%clk 0:02:51]}
2... d5 {[%clk 0:02:59.1]} 3. cxd5 {[%clk 0:02:50]} 3... Nxd5 {[%clk 0:03:00]}
4. Qb3 {[%clk 0:02:49.6]} 4... Nxc3 {[%clk 0:02:52.5]} 5. bxc3 {[%clk
0:02:48.6]} 5... g6 {[%clk 0:02:49.8]} 6. Ba3 {[%clk 0:02:46.2]} 6... Bg7 {[%clk
0:02:46.8]} 7. d4 {[%clk 0:02:44.6]} 7... O-O {[%clk 0:02:45.4]} 8. Rd1 {[%clk
0:02:43.4]} 8... c6 {[%clk 0:02:09.3]} 9. e4 {[%clk 0:02:38.1]} 9... Qb6 {[%clk
0:02:00.3]} 10. Qc2 {[%clk 0:02:21.2]} 10... Na6 {[%clk 0:01:57.4]} 11. Nf3
{[%clk 0:02:19.2]} 11... Be6 {[%clk 0:01:33.1]} 12. Ng5 {[%clk 0:02:13]} 12...
Bg4 {[%clk 0:01:14.7]} 13. f3 {[%clk 0:02:11.8]} 13... Qa5 {[%clk 0:01:13.5]}
14. Bxe7 {[%clk 0:02:06.2]} 14... Rfe8 {[%clk 0:01:08.4]} 15. fxg4 {[%clk
0:01:25.3]} 15... Rxe7 {[%clk 0:01:07.5]} 16. Nf3 {[%clk 0:01:24.8]} 16... Rae8
{[%clk 0:01:00.3]} 17. Bd3 {[%clk 0:01:24.6]} 17... c5 {[%clk 0:00:17.8]} 18.
O-O {[%clk 0:01:21.1]} 18... c4 {[%clk 0:00:16.7]} 19. Bxc4 {[%clk 0:01:10.8]}
19... Rxe4 {[%clk 0:00:15.6]} 20. Bxf7+ {[%clk 0:01:04.2]} 20... Kxf7 {[%clk
0:00:11.8]} 21. Ng5+ {[%clk 0:01:04.4]} 21... Kg8 {[%clk 0:00:12]} 22. Nxe4
{[%clk 0:01:04.7]} 1-0

[Event "Early-Titled-Tuesday-Blitz-April-16-2024"]
[Site "Chess.com"]
[Date "2024.04.16"]
[Round "4"]
[White "SkinnyPuppy8"]
[Black "Boorchess"]
[Result "0-1"]
[WhiteElo "2206"]
[BlackElo "2503"]
[TimeControl "180+1"]
[EndTime "8:38:13 PDT"]
[Termination "Boorchess won by resignation"]

1. e4 {[%clk 0:03:00]} 1... e5 {[%clk 0:02:59.3]} 2. Nc3 {[%clk 0:02:59.1]} 2...
Nf6 {[%clk 0:02:58.7]} 3. Bc4 {[%clk 0:02:59.6]} 3... Nxe4 {[%clk 0:02:58.3]} 4.
Qh5 {[%clk 0:03:00.1]} 4... Nd6 {[%clk 0:02:56.7]} 5. Qxe5+ {[%clk 0:02:59.4]}
5... Qe7 {[%clk 0:02:55.2]} 6. Qxe7+ {[%clk 0:02:59.8]} 6... Bxe7 {[%clk
0:02:55.2]} 7. Bb3 {[%clk 0:03:00.7]} 7... Nf5 {[%clk 0:02:53.2]} 8. Nge2 {[%clk
0:03:00.7]} 8... c6 {[%clk 0:02:52.6]} 9. d4 {[%clk 0:03:01.2]} 9... d5 {[%clk
0:02:50.8]} 10. Nd1 {[%clk 0:03:01.9]} 10... O-O {[%clk 0:02:49.5]} 11. Ne3
{[%clk 0:02:56]} 11... Re8 {[%clk 0:02:44.6]} 12. c3 {[%clk 0:02:51.4]} 12...
Nxe3 {[%clk 0:02:40.9]} 13. Bxe3 {[%clk 0:02:51.2]} 13... Bf5 {[%clk 0:02:39.9]}
14. Ng3 {[%clk 0:02:48.2]} 14... Bg6 {[%clk 0:02:39.3]} 15. Kd2 {[%clk 0:02:47]}
15... Nd7 {[%clk 0:02:37.9]} 16. h4 {[%clk 0:02:46]} 16... Nf6 {[%clk
0:02:26.4]} 17. h5 {[%clk 0:02:42.6]} 17... Ne4+ {[%clk 0:02:26.4]} 18. Nxe4
{[%clk 0:02:42.5]} 18... Bxe4 {[%clk 0:02:26]} 19. f3 {[%clk 0:02:41.2]} 19...
Bf5 {[%clk 0:02:25.1]} 20. g4 {[%clk 0:02:41.2]} 20... Bd7 {[%clk 0:02:24.2]}
21. Bf4 {[%clk 0:02:40.3]} 21... h6 {[%clk 0:02:17.1]} 22. Rae1 {[%clk
0:02:37.6]} 22... Bg5 {[%clk 0:02:11.5]} 23. Bxg5 {[%clk 0:02:37.5]} 23... hxg5
{[%clk 0:02:11.5]} 24. Bc2 {[%clk 0:02:34]} 24... Rxe1 {[%clk 0:02:02.2]} 25.
Rxe1 {[%clk 0:02:33.6]} 25... Re8 {[%clk 0:01:53]} 26. Rxe8+ {[%clk 0:02:33.8]}
26... Bxe8 {[%clk 0:01:53.1]} 27. Bf5 {[%clk 0:02:34.5]} 27... Kf8 {[%clk
0:01:52.6]} 28. Ke3 {[%clk 0:02:32.3]} 28... Ke7 {[%clk 0:01:52.1]} 29. f4
{[%clk 0:02:31.9]} 29... f6 {[%clk 0:01:50.6]} 30. Bc8 {[%clk 0:02:15.8]} 30...
b6 {[%clk 0:01:49.3]} 31. f5 {[%clk 0:02:11.7]} 31... Kd6 {[%clk 0:01:47.3]} 32.
Be6 {[%clk 0:02:05]} 32... c5 {[%clk 0:01:44.4]} 33. a3 {[%clk 0:02:02.3]} 33...
a5 {[%clk 0:01:37.5]} 34. b4 {[%clk 0:01:59.3]} 34... Ba4 {[%clk 0:01:31.2]} 35.
Kd2 {[%clk 0:01:50.1]} 35... Bb3 {[%clk 0:01:25.7]} 36. Bc8 {[%clk 0:01:42.1]}
36... Bc4 {[%clk 0:01:08.5]} 37. Ke3 {[%clk 0:01:42.2]} 37... cxb4 {[%clk
0:01:04.5]} 38. cxb4 {[%clk 0:01:40.4]} 38... axb4 {[%clk 0:01:04.1]} 39. axb4
{[%clk 0:01:40.6]} 39... Kc6 {[%clk 0:01:02.5]} 40. Kd2 {[%clk 0:01:31.5]} 40...
Bf1 {[%clk 0:00:53.8]} 41. Be6 {[%clk 0:01:29.6]} 41... Bh3 {[%clk 0:00:51.1]}
42. b5+ {[%clk 0:01:26.1]} 42... Kd6 {[%clk 0:00:50.5]} 43. Ke3 {[%clk
0:01:22.9]} 43... Bxg4 {[%clk 0:00:50.3]} 44. Bf7 {[%clk 0:01:21.3]} 44... Bxf5
{[%clk 0:00:46]} 0-1